bitfinex-derivatives/quotes_SOLF0:USTF0_20250216
["timestamp","ask_amount","ask_price","bid_price","bid_amount"]
[1739724111761,5.2428,190.71,190.7,0.03820993]
[1739724126569,7.5977615,190.67,190.61,7.5977615]
[1739724127164,5.2447,190.65,190.61,7.5977615]
[1739724127366,7.5977615,190.67,190.61,7.5977615]
[1739724127560,7.5977615,190.67,190.61,7.63324877]
[1739724127561,0.03311776,190.65,190.61,7.63324877]
[1739724127762,5.2447,190.64,190.61,7.63324877]
[1739724132469,5.245,190.63,190.61,7.63324877]
[1739724133266,5.2448,190.64,190.61,7.63324877]
[1739724134173,0.03311776,190.65,190.63,7.5977615]
[1739724135373,5.27761776,190.65,190.63,7.5977615]
[1739724135868,0.03311776,190.65,190.63,7.5977615]
[1739724144478,5.27751776,190.65,190.63,7.5977615]
[1739724147376,5.2447,190.64,190.63,7.5977615]
[1739724147578,0.03311776,190.65,190.61,0.03548727]
[1739724148177,5.2447,190.64,190.61,0.03548727]
[1739724148383,0.03311776,190.65,190.61,0.03548727]
[1739724149485,7.63087926,190.65,190.61,0.03548727]
[1739724149982,5.2447,190.64,190.61,0.03548727]
[1739724150184,7.63087926,190.65,190.61,0.03548727]
[1739724150481,5.2447,190.64,190.61,0.03548727]
[1739724150682,7.63087926,190.65,190.61,0.03548727]
[1739724151083,5.2452,190.62,190.61,0.03548727]
[1739724152375,5.2452,190.62,190.61,8.727e-05]
[1739724167294,5.2473,190.55,190.51,9.1892615]
[1739724167494,5.2473,190.55,190.51,7.5977615]
[1739724168397,5.28199787,190.55,190.51,7.63139866]
[1739724168905,0.03469787,190.55,190.51,7.63139866]
[1739724169097,0.03469787,190.55,190.53,7.5977615]
[1739724177802,0.03469787,190.55,190.53,9.1279615]
[1739724178308,5.2453,190.62,190.54,5.2474]
[1739724178510,3.2259,190.64,190.58,7.5977615]
[1739724179303,5.2451,190.63,190.59,0.03850346]
[1739724179607,0.03844607,190.63,190.59,0.03850346]
[1739724180410,7.63620757,190.63,190.59,0.03850346]
[1739724182611,12.88130757,190.63,190.59,0.03850346]
[1739724183111,5.2453,190.62,190.59,0.03850346]
[1739724183410,7.63620757,190.63,190.59,0.03850346]
[1739724184209,5.2457,190.61,190.59,0.03850346]
[1739724185111,12.88120757,190.63,190.59,0.03850346]
[1739724185303,7.63620757,190.63,190.59,0.03850346]
[1739724187812,5.2458,190.6,190.59,0.03850346]
[1739724188610,5.2477,190.53,190.52,7.5977615]
[1739724188911,5.2477,190.53,190.51,7.26477568]
[1739724189106,7.5977615,190.56,190.51,7.26477568]
[1739724189411,5.248,190.52,190.51,7.26477568]
[1739724190210,5.248,190.52,190.51,7.568e-05]
[1739724191211,5.28365879,190.53,190.51,7.568e-05]
[1739724191615,0.03565879,190.53,190.51,7.568e-05]
[1739724192915,0.03565879,190.53,190.5,0.03872942]
[1739724193716,0.03565879,190.53,190.5,7.63649092]
[1739724196917,0.03565879,190.53,190.5,12.88499092]
[1739724200223,0.03565879,190.53,190.52,7.5977615]
[1739724200923,0.03565879,190.53,190.52,12.8457615]
[1739724202326,12.8438615,190.6,190.52,12.8457615]
[1739724202627,7.5977615,190.6,190.54,7.5977615]
[1739724202929,5.2456,190.61,190.56,7.5977615]
[1739724203527,0.03557495,190.6,190.57,0.03721105]
[1739724203825,12.87913645,190.6,190.57,0.03721105]
[1739724205526,5.2462,190.59,190.57,0.03721105]
[1739724205726,7.63333645,190.6,190.57,0.03721105]
[1739724207322,5.28147495,190.6,190.57,0.03721105]
[1739724210229,5.2461,190.59,190.57,0.03721105]
[1739724210429,0.03557495,190.6,190.57,0.03721105]
[1739724210729,5.2461,190.59,190.57,0.03721105]
[1739724211628,5.2463,190.58,190.57,0.03721105]
[1739724229453,5.2477,190.54,190.5,7.5977615]
[1739724229853,7.5977615,190.6,190.5,7.5977615]
[1739724230049,5.2471,190.56,190.52,7.5977615]
[1739724230355,7.5977615,190.6,190.52,7.5977615]
[1739724230655,0.03458693,190.56,190.52,7.63624998]
[1739724231058,5.2472,190.55,190.52,7.63624998]
[1739724231958,5.2475,190.54,190.52,7.63624998]
[1739724232156,0.03458693,190.56,190.52,7.63624998]
[1739724232669,5.28158693,190.56,190.52,7.63624998]
[1739724233355,0.03458693,190.56,190.52,7.63624998]
[1739724233953,0.03458693,190.56,190.52,0.03848848]
[1739724234553,5.2472,190.55,190.52,0.03848848]
[1739724234851,0.03458693,190.56,190.52,0.03848848]
[1739724235051,0.03458693,190.56,190.52,7.63624998]
[1739724235956,5.28168693,190.56,190.52,7.63624998]
[1739724237059,0.03458693,190.56,190.52,7.63624998]
[1739724240164,5.28148693,190.56,190.52,7.63624998]
[1739724241565,0.03458693,190.56,190.52,7.63624998]
[1739724241764,5.28178693,190.56,190.52,7.63624998]
[1739724241962,0.03458693,190.56,190.52,7.63624998]
[1739724242464,5.2475,190.54,190.52,7.63624998]
[1739724242663,5.2475,190.54,190.52,0.03848848]
[1739724243565,0.03458693,190.56,190.52,0.03848848]
[1739724243766,5.2477,190.53,190.52,0.03848848]
[1739724244370,0.03458693,190.56,190.52,0.03848848]
[1739724244568,5.2475,190.54,190.52,0.03848848]
[1739724244866,5.2475,190.54,190.52,7.63624998]
[1739724245073,5.2472,190.55,190.52,7.63624998]
[1739724249668,0.03458693,190.56,190.52,7.63624998]
[1739724249963,5.28158693,190.56,190.52,7.63624998]
[1739724251569,0.03458693,190.56,190.52,7.63624998]
[1739724251867,0.03458693,190.56,190.54,7.5977615]
[1739724262574,5.28148693,190.56,190.54,7.5977615]
[1739724263373,5.2472,190.55,190.54,7.5977615]
[1739724272278,5.28158693,190.56,190.54,7.5977615]
[1739724272581,0.03458693,190.56,190.54,7.5977615]
[1739724273779,5.2472,190.55,190.54,7.5977615]
[1739724275375,0.03458693,190.56,190.52,7.63624998]
[1739724275680,5.2476,190.54,190.52,7.63624998]
[1739724277182,5.2477,190.53,190.52,7.63624998]
[1739724281888,5.2477,190.53,190.52,0.03848848]
[1739724284493,7.5977615,190.54,190.46,7.5977615]
[1739724284790,7.5977615,190.52,190.46,7.5977615]
[1739724285184,5.2487,190.5,190.46,7.5977615]
[1739724285789,5.28283323,190.5,190.46,7.5977615]
[1739724285990,0.03413323,190.5,190.46,7.5977615]
[1739724300103,0.03413323,190.5,190.46,12.8473615]
[1739724300300,0.03413323,190.5,190.48,7.5977615]
[1739724300899,0.03413323,190.5,190.49,5.2488]
[1739724301600,0.03413323,190.5,190.48,12.8467615]
[1739724302195,0.03413323,190.5,190.48,7.5977615]
[1739724302803,0.03413323,190.5,190.46,7.5977615]
[1739724303097,5.2488,190.49,190.46,7.5977615]
[1739724303696,7.63189473,190.5,190.44,7.5977615]
[1739724303906,7.5977615,190.48,190.42,7.5977615]
[1739724304202,5.2502,190.44,190.42,7.5977615]
[1739724304397,7.5977615,190.46,190.41,29.09209396]
[1739724304602,0.03570169,190.45,190.41,29.09209396]
[1739724304803,7.5977615,190.44,190.41,29.09209396]
[1739724305500,7.5977615,190.44,190.37,7.5977615]
[1739724306205,5.2508,190.42,190.37,7.5977615]
[1739724306403,7.5977615,190.44,190.37,7.5977615]
[1739724306618,5.2507,190.43,190.37,7.5977615]
[1739724309106,5.251,190.42,190.37,7.5977615]
[1739724309503,7.5977615,190.42,190.36,7.29776692]
[1739724309805,0.03570169,190.45,190.33,88.77780818]
[1739724309806,5.2518,190.39,190.33,9.1982615]
[1739724311213,7.5977615,190.4,190.33,9.1982615]
[1739724311509,7.5977615,190.4,190.35,7.5977615]
[1739724311903,5.2516,190.39,190.35,7.5977615]
[1739724312504,7.5977615,190.4,190.35,7.5977615]
[1739724312710,5.2519,190.38,190.35,7.5977615]
[1739724313607,5.2516,190.39,190.33,9.1982615]
[1739724314809,7.5977615,190.4,190.33,9.1982615]
[1739724315009,7.5977615,190.38,190.31,7.5977615]
[1739724315207,56.21111512,190.46,190.2,182.1056766]
[1739724315208,7.5977615,190.34,190.27,7.5977615]
[1739724315601,5.2537,190.32,190.27,7.5977615]
[1739724316001,0.03838453,190.31,190.27,7.5977615]
[1739724321011,0.03838453,190.31,190.29,12.8520615]
[1739724321213,7.5977615,190.38,190.29,7.5977615]
[1739724321510,7.5977615,190.38,190.32,7.5977615]
[1739724322502,0.03773729,190.37,190.33,0.03591575]
[1739724326408,5.28993729,190.37,190.33,0.03591575]
[1739724326613,0.03773729,190.37,190.33,0.03591575]
[1739724327205,5.2525,190.36,190.33,0.03591575]
[1739724328317,0.03773729,190.37,190.33,0.03591575]
[1739724328518,7.5977615,190.36,190.33,0.03591575]
[1739724329115,12.8507615,190.34,190.33,0.03591575]
[1739724329314,12.8507615,190.34,190.25,3.1334]
[1739724329315,7.5977615,190.34,190.26,7.5977615]
[1739724329616,12.8514615,190.32,190.26,7.5977615]
[1739724329812,7.5977615,190.32,190.26,7.5977615]
[1739724330420,0.04014943,190.31,190.26,7.5977615]
[1739724330618,5.29414943,190.31,190.26,7.5977615]
[1739724331823,5.2541,190.3,190.26,7.5977615]
[1739724332015,0.04014943,190.31,190.26,7.5977615]
[1739724332517,5.2543,190.29,190.26,7.5977615]
[1739724335426,5.2546,190.28,190.26,7.5977615]
[1739724335717,7.5977615,190.3,190.22,7.5977615]
[1739724335923,5.257,190.2,190.18,7.5977615]
[1739724336118,7.5977615,190.22,190.17,7.29776692]
[1739724336621,5.2572,190.19,190.17,7.29776692]
[1739724338219,7.5977615,190.2,190.17,7.29776692]
[1739724340221,7.5977615,190.2,190.14,7.5977615]
[1739724341829,0.03479063,190.21,190.18,7.5977615]
[1739724342026,0.03479063,190.21,190.2,7.5977615]
[1739724344219,5.2546,190.28,190.2,12.8545615]
[1739724344422,5.2546,190.28,190.22,7.5977615]
[1739724344624,7.5977615,190.29,190.22,7.5977615]
[1739724345032,5.2549,190.27,190.22,7.5977615]
[1739724345328,7.5977615,190.29,190.23,0.0402117]
[1739724345529,0.03372544,190.26,190.23,0.0402117]
[1739724346930,0.03372544,190.26,190.24,7.5977615]
[1739724348934,0.03372544,190.26,190.24,12.8534615]
[1739724349234,0.03372544,190.26,190.24,7.5977615]
[1739724352435,0.03372544,190.26,190.23,0.0402117]
[1739724353045,0.03372544,190.26,190.24,7.5977615]
[1739724353837,5.2557,190.24,190.23,0.0402117]
[1739724354045,7.5977615,190.24,190.15,7.5977615]
[1739724354447,5.2564,190.22,190.15,7.5977615]
[1739724354746,7.5977615,190.24,190.17,7.5977615]
[1739724355343,0.03651664,190.22,190.17,7.5977615]
[1739724355641,5.29281664,190.22,190.17,7.5977615]
[1739724357848,5.2566,190.21,190.17,7.5977615]
[1739724358946,0.03651664,190.22,190.17,7.5977615]
[1739724359650,5.29301664,190.22,190.17,7.5977615]
[1739724360148,0.03651664,190.22,190.17,7.5977615]
[1739724360944,7.63427814,190.22,190.15,7.5977615]
[1739724361152,7.63427814,190.22,190.13,7.5977615]
[1739724362850,7.5977615,190.2,190.13,7.5977615]
[1739724363050,5.2576,190.18,190.13,7.5977615]
[1739724363245,7.5977615,190.2,190.13,7.5977615]
[1739724363551,0.03849304,190.17,190.12,1.5551]
[1739724363752,7.5977615,190.18,190.12,1.5551]
[1739724363954,0.03576062,190.16,190.13,7.5977615]
[1739724364147,7.5977615,190.2,190.13,7.5977615]
[1739724364353,0.03865664,190.16,190.13,7.5977615]
[1739724368557,7.63641814,190.16,190.09,7.5977615]
[1739724368760,7.5977615,190.14,190.07,7.5977615]
[1739724369957,5.2599,190.1,190.07,7.5977615]
[1739724370261,3.3638,190.19,190.06,0.20446]
[1739724370262,7.5977615,190.12,190.06,0.20446]
[1739724370462,0.04029961,190.1,190.06,0.20446]
[1739724370663,5.29989961,190.1,190.06,0.20446]
[1739724371163,0.04029961,190.1,190.06,0.20446]
[1739724371361,5.26,190.09,190.06,0.20446]
[1739724371961,5.29989961,190.1,190.06,0.20446]
[1739724372156,0.04029961,190.1,190.06,0.20446]
[1739724377065,0.04029961,190.1,190.07,7.5977615]
[1739724377466,0.04029961,190.1,190.09,7.5977615]
[1739724378665,0.04029961,190.1,190.09,12.8576615]
[1739724379560,0.04029961,190.1,190.09,7.5977615]
[1739724382374,0.04029961,190.1,190.09,12.8576615]
[1739724382674,0.04029961,190.1,190.09,7.5977615]
[1739724383773,0.04029961,190.1,190.09,12.8576615]
[1739724384075,3.3638,190.19,190.09,7.5977615]
[1739724384274,7.5977615,190.2,190.13,7.5977615]
[1739724384674,57.01774259,190.22,190.15,7.5977615]
[1739724384877,49.41998109,190.22,190.17,7.5977615]
[1739724385273,0.03666344,190.21,190.18,0.03507426]
[1739724388477,7.5977615,190.2,190.18,0.03507426]
[1739724388980,12.8545615,190.2,190.18,0.03507426]
[1739724389980,7.5977615,190.2,190.18,0.03507426]
[1739724390181,5.2571,190.19,190.18,0.03507426]
[1739724390581,5.2571,190.19,190.13,7.5977615]
[1739724390978,7.5977615,190.18,190.11,7.5977615]
[1739724391581,5.258,190.16,190.11,7.5977615]
[1739724391782,5.29472764,190.16,190.11,7.5977615]
[1739724392180,0.03672764,190.16,190.11,7.5977615]
[1739724392383,7.63448914,190.16,190.09,7.5977615]
[1739724392682,7.5977615,190.1,190.05,7.29776692]
[1739724393084,0.0386029,190.09,190.05,7.29776692]
[1739724393483,0.0386029,190.09,190.03,7.5977615]
[1739724393684,5.2601,190.08,190.03,7.5977615]
[1739724393886,0.0386029,190.09,190.03,7.5977615]
[1739724394280,5.2985029,190.09,190.03,7.5977615]
[1739724395785,5.2603,190.08,190.03,7.5977615]
[1739724396285,0.0386029,190.09,190.03,7.5977615]
[1739724396979,1.6513029,190.09,190.03,7.5977615]
[1739724397576,7.5977615,190.06,190.01,7.8269315]
[1739724397884,7.5977615,190.06,190.01,0.22917]
[1739724398378,5.2614,190.04,190.01,0.22917]
[1739724398582,7.5977615,190.06,190.01,0.22917]
[1739724398782,0.03589711,190.04,190.01,0.22917]
[1739724398985,0.03589711,190.04,190.01,7.8269315]
[1739724402491,12.8556615,190.16,190.06,5.2605]
[1739724402790,5.2579,190.16,190.1,7.5977615]
[1739724402986,5.2582,190.15,190.1,7.5977615]
[1739724403693,0.03412187,190.14,190.11,0.03432157]
[1739724405887,0.03412187,190.14,190.12,7.5977615]
[1739724406794,0.03412187,190.14,190.12,12.8567615]
[1739724407194,0.03412187,190.14,190.12,7.5977615]
[1739724411390,0.03412187,190.14,190.11,0.03432157]
[1739724411692,15.75,190.11,190.02,11.92816208]
[1739724411894,7.5977615,190.03,190.01,58.34737545]
[1739724412194,5.2618,190.02,190.01,58.34737545]
[1739724412391,7.5977615,190.03,190.01,58.34737545]
[1739724412595,10.77395139,190.03,190.01,58.34737545]
[1739724412793,16.03555139,190.03,190.01,58.34737545]
[1739724413600,16.03555139,190.03,190.01,0.22917]
[1739724415900,5.2616,190.03,190.01,0.22917]
[1739724416097,0.03629944,190.04,190.01,0.22917]
[1739724416798,5.2615,190.03,190.01,0.22917]
[1739724417199,5.2618,190.02,190.01,0.22917]
[1739724419699,5.2626,190.0,189.93,10.77395139]
[1739724420092,0.03628549,189.98,189.93,10.77395139]
[1739724422798,0.03628549,189.98,189.93,11.02784139]
[1739724423105,5.29918549,189.98,189.93,11.02784139]
[1739724424297,5.2634,189.97,189.93,11.02784139]
[1739724426901,0.03628549,189.98,189.93,0.25389]
[1739724427099,5.2636,189.96,189.93,0.25389]
[1739724427300,0.03628549,189.98,189.93,0.25389]
[1739724427499,5.2637,189.96,189.93,0.25389]
[1739724427803,0.03628549,189.98,189.93,0.25389]
[1739724428302,5.2634,189.97,189.93,0.25389]
[1739724430803,5.29928549,189.98,189.93,0.25389]
[1739724431000,0.03628549,189.98,189.93,11.02784139]
[1739724431302,10.77395139,190.05,189.93,11.02784139]
[1739724431602,10.77395139,190.08,189.93,11.02784139]
[1739724431899,10.77395139,190.08,189.97,5.263]
[1739724432102,10.77395139,190.08,189.98,3.1949]
[1739724432297,0.03780606,190.04,190.01,0.03419452]
[1739724432497,5.2617,190.03,190.01,0.03419452]
[1739724432694,0.03780606,190.04,190.01,0.03419452]
[1739724433002,5.2615,190.03,190.01,0.03419452]
[1739724434098,0.03780606,190.04,190.01,0.03419452]
[1739724434299,5.2618,190.02,190.01,0.03419452]
[1739724435798,5.2618,190.02,190.01,9.452e-05]
[1739724447717,12.91908888,190.03,190.01,9.452e-05]
[1739724447917,7.65748888,190.03,190.01,9.452e-05]
[1739724449117,5.2618,190.02,190.01,9.452e-05]
[1739724449318,7.65748888,190.03,190.01,9.452e-05]
[1739724449715,12.91908888,190.03,190.01,9.452e-05]
[1739724450522,7.65748888,190.03,190.01,9.452e-05]
[1739724451121,12.91908888,190.03,190.01,9.452e-05]
[1739724451422,0.03780606,190.04,190.01,9.452e-05]
[1739724452223,5.2616,190.03,190.01,9.452e-05]
[1739724453218,0.03780606,190.04,190.01,9.452e-05]
[1739724453931,0.03780606,190.04,190.01,1.66589452]
[1739724454125,7.65748888,190.07,190.01,1.66589452]
[1739724455015,5.2615,190.04,190.01,1.66589452]
[1739724457037,7.65748888,190.05,190.01,1.66589452]
[1739724458828,5.2618,190.03,190.01,9.452e-05]
[1739724459024,7.65748888,190.05,190.01,9.452e-05]
[1739724459231,5.2618,190.02,190.01,9.452e-05]
[1739724459629,7.65748888,190.05,190.01,9.452e-05]
[1739724460919,5.2618,190.02,190.01,9.452e-05]
[1739724470635,12.91918888,190.03,190.01,9.452e-05]
[1739724470833,7.65748888,190.03,190.01,9.452e-05]
[1739724472328,5.2618,190.02,190.01,9.452e-05]
[1739724472735,12.91908888,190.03,190.01,9.452e-05]
[1739724473129,7.65748888,190.03,190.01,9.452e-05]
[1739724474028,5.2618,190.02,190.01,9.452e-05]
[1739724481740,7.65748888,190.05,190.01,9.452e-05]
[1739724481938,5.2616,190.03,190.01,9.452e-05]
[1739724482130,7.65748888,190.05,190.01,9.452e-05]
[1739724482840,0.03408941,190.06,190.01,9.452e-05]
[1739724483443,5.2614,190.04,190.01,9.452e-05]
[1739724483940,0.03408941,190.06,190.01,9.452e-05]
[1739724484137,5.261,190.05,190.01,1.63079452]
[1739724484536,5.29478941,190.06,190.01,1.63079452]
[1739724485141,5.2613,190.04,190.01,1.63079452]
[1739724486839,5.261,190.05,190.01,1.63079452]
[1739724487238,0.03408941,190.06,190.01,1.63079452]
[1739724487445,5.2614,190.04,190.01,1.63079452]
[1739724487841,0.03408941,190.06,190.01,1.63079452]
[1739724488040,5.2612,190.05,190.01,1.63079452]
[1739724488441,0.03408941,190.06,190.01,1.63079452]
[1739724488643,0.03408941,190.06,190.02,7.65748888]
[1739724488846,44.46400686,190.09,190.04,7.65748888]
[1739724489043,44.46400686,190.09,190.06,7.65748888]
[1739724489743,5.2605,190.07,190.06,7.65748888]
[1739724489942,5.2605,190.07,190.06,7.69708954]
[1739724490339,5.29368154,190.09,190.06,7.69708954]
[1739724491642,5.2602,190.08,190.06,7.69708954]
[1739724492248,5.29368154,190.09,190.06,7.69708954]
[1739724493047,0.03378154,190.09,190.06,7.69708954]
[1739724493649,5.2603,190.08,190.06,7.69708954]
[1739724494444,0.03378154,190.09,190.06,7.69708954]
[1739724494645,5.29368154,190.09,190.06,7.69708954]
[1739724494949,0.03378154,190.09,190.06,7.69708954]
[1739724496051,0.03378154,190.09,190.08,7.65748888]
[1739724496551,7.65748888,190.13,190.08,7.65748888]
[1739724496751,7.65748888,190.15,190.08,7.65748888]
[1739724497045,5.2588,190.13,190.08,7.65748888]
[1739724497250,5.2588,190.13,190.1,7.65748888]
[1739724497851,0.0373244,190.13,190.1,7.69452119]
[1739724498750,0.0373244,190.13,190.1,12.95402119]
[1739724499151,0.0373244,190.13,190.1,7.69452119]
[1739724499849,0.0373244,190.13,190.1,0.03703231]
[1739724500648,5.2593,190.11,190.1,0.03703231]
[1739724503856,12.91678888,190.11,190.1,0.03703231]
[1739724506553,12.91678888,190.11,190.1,0.00153231]
[1739724532072,7.69481328,190.13,190.1,0.00153231]
[1739724533175,5.2593,190.11,190.1,0.00153231]
[1739724533474,7.69481328,190.13,190.1,0.00153231]
[1739724533675,5.2593,190.12,190.1,0.00153231]
[1739724533877,7.69481328,190.13,190.1,0.00153231]
[1739724534475,5.259,190.12,190.1,0.00153231]
[1739724534672,7.65748888,190.11,190.1,0.00153231]
[1739724534980,7.65748888,190.11,190.02,1.6783]
[1739724535176,7.65748888,190.06,190.02,1.6783]
[1739724535678,12.91838888,190.06,190.02,1.6783]
[1739724535875,7.65748888,190.06,190.02,1.6783]
[1739724536175,7.69588448,190.06,190.02,1.71764277]
[1739724536474,5.261,190.05,190.02,1.71764277]
[1739724536874,5.2613,190.04,190.02,1.71764277]
[1739724538078,0.0383956,190.06,190.02,1.71764277]
[1739724538880,5.2612,190.05,190.02,1.71764277]
[1739724539476,5.2613,190.04,190.02,1.71764277]
[1739724543381,5.2615,190.03,190.02,1.71764277]
[1739724544580,7.69588448,190.06,190.02,1.71764277]
[1739724544978,5.2613,190.04,190.02,1.71764277]
[1739724546376,7.69588448,190.06,190.02,1.71764277]
[1739724546583,7.65748888,190.04,190.02,1.71764277]
[1739724546775,5.2615,190.03,190.02,1.71764277]
[1739724548683,5.2615,190.03,190.02,0.03934277]
[1739724548879,5.2615,190.03,190.02,4.277e-05]
[1739724570100,5.2612,190.05,190.02,4.277e-05]
[1739724570804,40.64348803,190.06,190.02,7.65753165]
[1739724571005,30.28178803,190.06,190.04,7.65748888]
[1739724571205,27.73138803,190.06,190.04,7.65748888]
[1739724572106,22.63038803,190.06,190.04,7.65748888]
[1739724572306,7.65748888,190.17,190.04,7.65748888]
[1739724572610,5.2588,190.13,190.11,7.65748888]
[1739724573405,5.2585,190.15,190.11,7.65748888]
[1739724573611,0.03960493,190.14,190.11,7.65748888]
[1739724574208,5.29830493,190.14,190.11,7.65748888]
[1739724574412,0.03960493,190.14,190.1,0.03796382]
[1739724574809,12.91678888,190.11,190.1,0.03796382]
[1739724575008,12.91678888,190.11,190.1,6.382e-05]
[1739724578713,9.28908888,190.13,190.1,6.382e-05]
[1739724578910,5.2591,190.12,190.1,6.382e-05]
[1739724579114,0.03960493,190.14,190.1,7.6575527]
[1739724579514,0.03960493,190.14,190.12,7.65748888]
[1739724579911,0.03960493,190.14,190.1,7.6575527]
[1739724581123,0.03960493,190.14,190.1,6.382e-05]
[1739724581311,7.65748888,190.13,190.1,6.382e-05]
[1739724582215,5.2593,190.11,190.1,6.382e-05]
[1739724582419,7.65748888,190.13,190.1,6.382e-05]
[1739724583316,5.259,190.12,190.1,6.382e-05]
[1739724584913,0.03960493,190.14,190.1,6.382e-05]
[1739724585115,0.03960493,190.14,190.1,7.6575527]
[1739724585320,0.03960493,190.14,190.12,7.65748888]
[1739724588020,0.03960493,190.14,190.1,7.6575527]
[1739724588211,0.03960493,190.14,190.12,7.65748888]
[1739724590311,0.03960493,190.14,190.12,12.91648888]
[1739724591020,0.03960493,190.14,190.12,7.65748888]
[1739724592225,5.2588,190.13,190.12,7.65748888]
[1739724598031,0.03960493,190.14,190.12,7.65748888]
[1739724598233,5.29820493,190.14,190.12,7.65748888]
[1739724599933,0.03960493,190.14,190.1,7.6575527]
[1739724600725,5.2592,190.12,190.1,7.6575527]
[1739724602127,5.2593,190.11,190.1,7.6575527]
[1739724602932,5.2593,190.11,190.1,6.382e-05]
[1739724604635,9.30689381,190.14,190.1,6.382e-05]
[1739724604832,0.03960493,190.14,190.1,7.6575527]
[1739724605633,5.2589,190.13,190.1,7.6575527]
[1739724605832,0.03960493,190.14,190.1,7.6575527]
[1739724606334,0.03960493,190.14,190.12,7.65748888]
[1739724608939,5.29810493,190.14,190.12,7.65748888]
[1739724609741,0.03960493,190.14,190.12,7.65748888]
[1739724610944,5.29810493,190.14,190.12,7.65748888]
[1739724612437,0.03960493,190.14,190.1,7.6575527]
[1739724612646,0.03960493,190.14,190.1,6.382e-05]
[1739724612939,5.2593,190.11,190.1,6.382e-05]
[1739724613740,0.03960493,190.14,190.1,7.6575527]
[1739724614246,5.29820493,190.14,190.1,7.6575527]
[1739724614447,0.03960493,190.14,190.1,7.6575527]
[1739724615150,0.03960493,190.14,190.12,7.65748888]
[1739724616845,5.29810493,190.14,190.12,7.65748888]
[1739724617851,0.03960493,190.14,190.1,7.6575527]
[1739724618049,0.03960493,190.14,190.1,6.382e-05]
[1739724618452,5.2592,190.12,190.1,6.382e-05]
[1739724619759,5.2592,190.12,190.1,7.6575527]
[1739724620858,0.03960493,190.14,190.1,7.6575527]
[1739724621060,5.2593,190.11,190.1,6.382e-05]
[1739724633475,4.8883,190.13,190.1,6.382e-05]
[1739724633666,5.2592,190.12,190.1,6.382e-05]
[1739724634677,0.03960493,190.14,190.1,6.382e-05]
[1739724634969,5.2588,190.13,190.1,6.382e-05]
[1739724635374,0.03960493,190.14,190.1,6.382e-05]
[1739724635574,5.29820493,190.14,190.1,7.6575527]
[1739724635773,0.03960493,190.14,190.12,7.65748888]
[1739724638867,0.03960493,190.14,190.13,5.2588]
[1739724639574,0.03960493,190.14,190.12,7.65748888]
[1739724639775,0.03960493,190.14,190.12,12.91628888]
[1739724640577,0.03960493,190.14,190.13,5.2588]
[1739724640880,5.2571,190.19,190.12,7.65748888]
[1739724641179,5.2571,190.19,190.17,7.65748888]
[1739724642179,5.29274708,190.2,190.17,7.65748888]
[1739724642380,0.03574708,190.2,190.17,7.65748888]
[1739724642875,5.29254708,190.2,190.17,7.65748888]
[1739724644179,0.03574708,190.2,190.17,7.65748888]
[1739724644380,5.2571,190.19,190.17,7.65748888]
[1739724644975,0.03574708,190.2,190.17,7.65748888]
[1739724645181,5.2576,190.18,190.16,0.03781044]
[1739724645583,5.2576,190.17,190.16,0.03781044]
[1739724646286,5.2571,190.19,190.16,0.03781044]
[1739724647773,5.2575,190.18,190.16,0.03781044]
[1739724651379,0.03574708,190.2,190.16,0.03781044]
[1739724651682,0.03574708,190.2,190.19,7.65748888]
[1739724661289,0.03574708,190.2,190.19,12.91458888]
[1739724661486,5.2559,190.24,190.19,7.65748888]
[1739724661790,5.2549,190.27,190.23,7.65748888]
[1739724661983,5.2549,190.27,190.26,7.65748888]
[1739724662185,7.65748888,190.32,190.24,7.65748888]
[1739724662584,7.65748888,190.3,190.24,7.65748888]
[1739724662788,7.69204581,190.3,190.26,0.03343626]
[1739724664590,5.2549,190.27,190.26,0.03343626]
[1739724666091,5.2544,190.29,190.26,7.69092514]
[1739724666292,0.03455693,190.3,190.26,7.69092514]
[1739724666793,5.28865693,190.3,190.26,7.69092514]
[1739724668492,0.03455693,190.3,190.28,7.65748888]
[1739724672396,5.2527,190.35,190.28,7.65748888]
[1739724672592,5.2527,190.35,190.33,7.65748888]
[1739724673399,0.03529464,190.36,190.33,7.65748888]
[1739724673589,0.03529464,190.36,190.35,7.65748888]
[1739724673898,0.03529464,190.36,190.33,7.65748888]
[1739724674595,5.2527,190.35,190.33,7.65748888]
[1739724676097,0.03529464,190.36,190.33,7.65748888]
[1739724676602,5.28789464,190.36,190.33,7.65748888]
[1739724677502,5.2527,190.35,190.33,7.65748888]
[1739724679801,5.253,190.34,190.33,7.65748888]
[1739724680408,5.2532,190.33,190.32,0.03853152]
[1739724683209,7.65748888,190.34,190.27,7.65748888]
[1739724683402,1.6348,190.33,190.27,7.65748888]
[1739724683605,5.2543,190.3,190.27,7.65748888]
[1739724684107,5.29254107,190.3,190.27,7.69644743]
[1739724686109,0.03824107,190.3,190.29,7.65748888]
[1739724691508,0.03824107,190.3,190.27,0.03895855]
[1739724691509,0.03824107,190.3,190.27,7.69644743]
[1739724691709,0.03824107,190.3,190.27,0.03895855]